[Event "98th Caplin Hastings Masters 2024-25"]
[Site "Hastings"]
[Date "2025.01.02"]
[Round "8.39"]
[White "Ashton, Alannah"]
[Black "Kim, Yegeon"]
[Result "0-1"]
[ECO "C96"]
[WhiteElo "1953"]
[BlackElo "1697"]
[Annotator "NA RC"]
[PlyCount "196"]
[EventDate "2024.12.23"]
[EventType "swiss"]
[EventCountry "ENG"]
[SourceTitle "playchess.com"]
[Source "ChessBase"]
[SourceQuality "1"]
[TimeControl "5400+30"]

1. e4 {[%emt 0:00:45]} e5 {[%emt 0:00:05]} 2. Nf3 {[%emt 0:00:05]} Nc6 {[%emt 0:00:01]} 3. Bb5 {[%emt 0:00:08]} a6 {[%emt 0:00:06]} 4. Ba4 {[%emt 0:00:03]} Nf6 {[%emt 0:00:05]} 5. O-O {[%emt 0:00:06]} Be7 {[%emt 0:00:04]} 6. Re1 {[%emt 0:00:08]} b5 {[%emt 0:00:04]} 7. Bb3 {[%emt 0:00:03]} O-O {[%emt 0:00:32]} 8. c3 {[%emt 0:00:20]} d6 {[%emt 0:00:09]} 9. h3 {[%emt 0:00:12]} Na5 {[%emt 0:00:05]} 10. Bc2 {[%emt 0:00:05]} c5 {[%emt 0:00:01]} 11. d4 {[%emt 0:00:08]} Nd7 {[%emt 0:00:02]} 12. Nbd2 {[%emt 0:04:44]} exd4 {[%emt 0:00:16]} 13. cxd4 {[%emt 0:01:07]} Nc6 {[%emt 0:00:03]} 14. d5 {[%emt 0:02:27]} Nce5 {[%emt 0:00:34]} 15. Nxe5 {[%emt 0:06:00]} Nxe5 {[%emt 0:00:02]} 16. f4 {[%emt 0:08:30]} Ng6 {[%emt 0:00:14]} 17. Nf3 {[%emt 0:01:57]} Bh4 {[%emt 0:01:11]} 18. Nxh4 {[%emt 0:09:29]} Qxh4 {[%emt 0:00:10]} 19. Rf1 {[%emt 0:05:18]} f5 {[%emt 0:52:48]} 20. exf5 {[%emt 0:26:03]} Bxf5 {[%emt 0:01:29]} 21. Bxf5 {[%emt 0:00:24]} Rxf5 {[%emt 0:00:41]} 22. Qe2 {[%emt 0:03:34]} Kh8 {[%emt 0:13:25]} 23. Qe6 {[%emt 0:19:56]} Rf6 {[%emt 0:01:55]} 24. Qg4 {[%emt 0:00:38]} Qxg4 {[%emt 0:07:11]} 25. hxg4 {[%emt 0:00:05]} Raf8 {[%emt 0:05:18]} 26. f5 {[%emt 0:06:11]} Ne5 {[%emt 0:02:49]} 27. Bg5 {[%emt 0:00:26]} R6f7 {[%emt 0:00:53]} 28. Rae1 {[%emt 0:00:13]} h6 {[%emt 0:02:06]} 29. Bh4 {[%emt 0:00:20]} Nxg4 {[%emt 0:02:54]} 30. Be7 {[%emt 0:01:52]} Re8 {[%emt 0:00:09]} 31. f6 {[%emt 0:00:54]} Nxf6 {[%emt 0:03:06]} 32. Bxd6 {[%emt 0:01:00]} Rxe1 {[%emt 0:01:36]} 33. Rxe1 {[%emt 0:00:02]} Nxd5 {[%emt 0:00:32]} 34. Bxc5 {[%emt 0:00:06]} Rc7 {[%emt 0:01:41]} 35. Bd4 {[%emt 0:01:14]} Rc2 {[%emt 0:01:58]} 36. g3 {[%emt 0:02:37]} Rd2 {[%emt 0:00:58]} 37. Be5 {[%emt 0:00:19]} Kg8 {[%emt 0:02:11]} 38. Rc1 {[%emt 0:01:07]} Re2 {[%emt 0:01:11]} 39. Bd4 {[%emt 0:00:13]} Re4 {[%emt 0:00:37]} 40. Bf2 {[%emt 0:00:14]} Nb4 {[%emt 0:00:22]} 41. Rc8+ {[%emt 0:00:19]} Kh7 {[%emt 0:00:30]} 42. a3 {[%emt 0:00:20]} Nd3 {[%emt 0:00:32]} 43. Rc2 {[%emt 0:00:20]} h5 {[%emt 0:00:40]} 44. Rd2 {[%emt 0:00:12]} Ne5 {[%emt 0:00:31]} 45. Rd6 {[%emt 0:00:41]} a5 {[%emt 0:00:38]} 46. Rd5 {[%emt 0:00:21]} Nf3+ {[%emt 0:00:33]} 47. Kg2 {[%emt 0:00:21]} Re5 {[%emt 0:00:13]} 48. Rd7 {[%emt 0:01:10]} Ne1+ {[%emt 0:00:44]} 49. Bxe1 {[%emt 0:00:41]} Rxe1 {[%emt 0:00:01]} 50. Kf2 {[%emt 0:00:50]} Rb1 {[%emt 0:00:33]} 51. Rd2 {[%emt 0:00:04]} Kh6 {[%emt 0:00:43]} 52. Kf3 {[%emt 0:00:54]} g6 {[%emt 0:00:40]} 53. Re2 {[%emt 0:00:31]} Rf1+ {[%emt 0:00:21]} 54. Kg2 {[%emt 0:00:04]} Rc1 {[%emt 0:00:27]} 55. Kf3 {[%emt 0:00:25]} Rc5 {[%emt 0:00:32]} 56. Rd2 {[%emt 0:00:25]} Kg5 {[%emt 0:00:24]} 57. Rd4 {[%emt 0:00:29]} Kf5 {[%emt 0:00:34]} 58. Rd2 {[%emt 0:01:35]} g5 {[%emt 0:00:09]} 59. Kg2 {[%emt 0:00:43]} Re5 {[%emt 0:00:41]} 60. Rf2+ {[%emt 0:00:17]} Kg4 {[%emt 0:00:36]} 61. Rd2 {[%emt 0:00:18]} Re4 {[%emt 0:00:30]} 62. Kf2 {[%emt 0:00:07]} Rc4 {[%emt 0:00:43]} 63. Kg2 {[%emt 0:00:25]} b4 {[%emt 0:00:29]} 64. axb4 {[%emt 0:00:07]} Rxb4 {[%emt 0:00:05]} 65. Rc2 {[%emt 0:00:11]} Rd4 {[%emt 0:00:32]} 66. Re2 {[%emt 0:00:18]} Rd3 {[%emt 0:00:31]} 67. Re4+ {[%emt 0:00:03]} Kf5 {[%emt 0:00:03]} 68. Re2 {[%emt 0:00:15]} Rd4 {[%emt 0:00:35]} 69. Rc2 {[%emt 0:00:05]} Ke5 {[%emt 0:00:18]} 70. Rc5+ {[%emt 0:00:24]} Rd5 {[%emt 0:00:05]} 71. Rc2 {[%emt 0:00:06]} Kd4 {[%emt 0:00:36]} 72. Rd2+ {[%emt 0:00:49]} Kc4 {[%emt 0:00:26]} 73. Rf2 {[%emt 0:00:48]} Kb3 {[%emt 0:00:31]} 74. Kh3 {[%emt 0:02:29]} Rc5 {[%emt 0:00:29]} 75. Re2 {[%emt 0:00:18]} a4 {[%emt 0:01:25]} 76. Re4 {[%emt 0:01:10]} Rc2 {[%emt 0:00:34]} 77. Re5 {[%emt 0:00:08]} g4+ {[%emt 0:00:07]} 78. Kh4 {[%emt 0:00:05]} Rh2+ {[%emt 0:00:03]} 79. Kg5 {[%emt 0:00:06]} Kxb2 {[%emt 0:00:14]} 80. Rb5+ {[%emt 0:00:17]} Ka2 {[%emt 0:00:53]} 81. Rb8 {[%emt 0:00:22]} Rh3 {[%emt 0:00:25]} 82. Kf4 {[%emt 0:00:02]} a3 {[%emt 0:00:19]} 83. Re8 {[%emt 0:00:37]} Rh1 {[%emt 0:00:18]} 84. Kg5 {[%emt 0:00:41]} Kb2 {[%emt 0:00:21]} 85. Rb8+ {[%emt 0:00:02]} Ka1 {[%emt 0:00:05]} 86. Rb3 {[%emt 0:00:25]} a2 {[%emt 0:00:09]} 87. Rb8 {[%emt 0:00:07]} Rb1 {[%emt 0:00:04]} 88. Ra8 {[%emt 0:00:17]} Kb2 {[%emt 0:00:11]} 89. Rb8+ {[%emt 0:00:04]} Kc3 {[%emt 0:00:08]} 90. Rc8+ {[%emt 0:00:10]} Kd4 {[%emt 0:00:05]} 91. Ra8 {[%emt 0:00:16]} a1=Q {[%emt 0:00:06]} 92. Rxa1 {[%emt 0:00:04]} Rxa1 {[%emt 0:00:06]} 93. Kxh5 {[%emt 0:00:01]} Ke5 {[%emt 0:00:16]} 94. Kxg4 {[%emt 0:00:03]} Kf6 {[%emt 0:00:06]} 95. Kf4 {[%emt 0:00:40]} Ra4+ {[%emt 0:00:05]} 96. Kf3 {[%emt 0:00:05]} Kg5 {[%emt 0:00:04]} 97. Kf2 {[%emt 0:00:05]} Kg4 {[%emt 0:00:04]} 98. Kg2 {[%emt 0:00:04]} Ra2+ {[%emt 0:00:08]} 0-1

[Event "98th Caplin Hastings Masters 2024-25"]
[Site "Hastings"]
[Date "2025.01.02"]
[Round "8.40"]
[White "Lee, Jungsoo"]
[Black "Byron, Alan M"]
[Result "1-0"]
[ECO "B12"]
[WhiteElo "1705"]
[BlackElo "2069"]
[Annotator "NA RC"]
[PlyCount "109"]
[EventDate "2024.12.23"]
[EventType "swiss"]
[EventCountry "ENG"]
[SourceTitle "playchess.com"]
[Source "ChessBase"]
[SourceQuality "1"]
[TimeControl "5400+30"]

1. e4 {[%emt 0:00:03]} c6 {[%emt 0:00:07]} 2. d4 {[%emt 0:00:05]} d5 {[%emt 0:00:06]} 3. e5 {[%emt 0:00:03]} Bf5 {[%emt 0:00:09]} 4. g4 {[%emt 0:00:09]} Bd7 {[%emt 0:00:08]} 5. Nc3 {[%emt 0:00:21]} e6 {[%emt 0:00:10]} 6. Be3 {[%emt 0:00:06]} Qc7 {[%emt 0:02:13]} 7. Qd2 {[%emt 0:02:20]} h5 {[%emt 0:02:37]} 8. g5 {[%emt 0:05:01]} g6 {[%emt 0:01:38]} 9. O-O-O {[%emt 0:01:38]} c5 {[%emt 0:03:43]} 10. dxc5 {[%emt 0:00:34]} Bxc5 {[%emt 0:00:15]} 11. Bxc5 {[%emt 0:01:03]} Qxc5 {[%emt 0:00:03]} 12. Nh3 {[%emt 0:01:41]} a6 {[%emt 0:04:44]} 13. Nf4 {[%emt 0:02:09]} Ne7 {[%emt 0:05:19]} 14. Bg2 {[%emt 0:02:55]} Bc6 {[%emt 0:04:51]} 15. Ne4 {[%emt 0:00:27]} Qb6 {[%emt 0:00:53]} 16. Nd6+ {[%emt 0:00:48]} Kf8 {[%emt 0:00:08]} 17. Bh3 {[%emt 0:01:39]} Bd7 {[%emt 0:02:43]} 18. Nd3 {[%emt 0:06:50]} Nbc6 {[%emt 0:03:35]} 19. Qf4 {[%emt 0:00:58]} Rh7 {[%emt 0:00:16]} 20. Qf6 {[%emt 0:02:32]} Ng8 {[%emt 0:06:24]} 21. Qf3 {[%emt 0:02:59]} Rg7 {[%emt 0:03:25]} 22. Qe2 {[%emt 0:07:08]} Nb4 {[%emt 0:13:03]} 23. Nxb4 {[%emt 0:07:29]} Qxb4 {[%emt 0:00:06]} 24. Qe3 {[%emt 0:00:32]} Ne7 {[%emt 0:01:18]} 25. Rd4 {[%emt 0:01:10]} Qb6 {[%emt 0:00:59]} 26. Qf4 {[%emt 0:01:37]} Nc6 {[%emt 0:02:57]} 27. Rd3 {[%emt 0:07:32]} Qc7 {[%emt 0:05:40]} 28. Rf3 {[%emt 0:01:28]} Nd8 {[%emt 0:04:31]} 29. Rd1 {[%emt 0:01:09]} Bc6 {[%emt 0:00:53]} 30. Qd4 {[%emt 0:01:19]} Qe7 {[%emt 0:01:52]} 31. Rf6 {[%emt 0:00:47]} Kg8 {[%emt 0:07:16]} 32. f4 {[%emt 0:00:39]} b5 {[%emt 0:04:37]} 33. Qd3 {[%emt 0:02:38]} Be8 {[%emt 0:01:31]} 34. Qe2 {[%emt 0:05:50]} Nc6 {[%emt 0:04:57]} 35. Kb1 {[%emt 0:03:33]} Rd8 {[%emt 0:01:54]} 36. c3 {[%emt 0:01:29]} b4 {[%emt 0:04:05]} 37. cxb4 {[%emt 0:01:17]} Nxb4 {[%emt 0:00:08]} 38. a3 {[%emt 0:04:56]} Nc6 {[%emt 0:00:55]} 39. Qxa6 {[%emt 0:01:44]} Rb8 {[%emt 0:02:57]} 40. Rc1 {[%emt 0:01:21]} Bd7 {[%emt 0:01:43]} 41. Rxc6 {[%emt 0:01:21]} Bxc6 {[%emt 0:00:01]} 42. Qxc6 {[%emt 0:00:27]} Qa7 {[%emt 0:00:09]} 43. Qc3 {[%emt 0:04:21]} Qf2 {[%emt 0:02:09]} 44. Rxf7 {[%emt 0:01:35]} Rxf7 {[%emt 0:02:19]} 45. Bxe6 {[%emt 0:00:16]} d4 {[%emt 0:00:06]} 46. Bxf7+ {[%emt 0:01:40]} Kg7 {[%emt 0:00:23]} 47. Qc2 {[%emt 0:01:05]} Qf1+ {[%emt 0:00:36]} 48. Ka2 {[%emt 0:00:35]} d3 {[%emt 0:00:09]} 49. Qc3 {[%emt 0:03:54]} Qxf4 {[%emt 0:01:25]} 50. e6+ {[%emt 0:00:53]} Kh7 {[%emt 0:00:09]} 51. Qxd3 {[%emt 0:00:26]} Qxg5 {[%emt 0:00:23]} 52. Qxg6+ {[%emt 0:00:36]} Qxg6 {[%emt 0:01:16]} 53. Bxg6+ {[%emt 0:00:08]} Kxg6 {[%emt 0:00:02]} 54. e7 {[%emt 0:00:06]} h4 {[%emt 0:01:12]} 55. e8=Q+ {[%emt 0:01:18]} 1-0

[Event "98th Caplin Hastings Masters 2024-25"]
[Site "Hastings"]
[Date "2025.01.02"]
[Round "8.41"]
[White "Ghazarian, Kirk"]
[Black "Zhou, Yang-Fan"]
[Result "1-0"]
[ECO "A62"]
[WhiteElo "2501"]
[BlackElo "2424"]
[Annotator "TA"]
[PlyCount "95"]
[EventDate "2024.12.23"]
[EventType "swiss"]
[EventCountry "ENG"]
[SourceTitle "playchess.com"]
[Source "ChessBase"]
[SourceQuality "1"]
[TimeControl "5400+30"]

{[%evp 19,95,32,24,11,42,48,44,41,57,64,63,43,64,45,50,46,46,52,47,40,58,20,50,53,62,55,61,35,56,11,165,160,178,114,117,116,104,119,105,112,106,103,141,150,143,139,206,220,206,211,368,216,216,214,217,205,224,220,222,206,232,233,245,239,247,224,256,178,211,210,383,375,394,390,387,297,565,540]} 1. d4 {[%emt 0:00:15]} Nf6 {[%emt 0:00:06]} 2. c4 {[%emt 0:00:10]} g6 {[%emt 0:00:05]} 3. g3 {[%emt 0:00:06]} Bg7 {[%emt 0:00:16]} 4. Bg2 {[%emt 0:00:18]} O-O {[%emt 0:00:15]} 5. Nf3 {[%emt 0:00:10]} d6 {[%emt 0:00:04]} 6. Nc3 {[%emt 0:00:37]} c5 {[%emt 0:00:15]} 7. d5 {[%emt 0:03:00]} e6 {[%emt 0:00:12]} 8. O-O {[%emt 0:00:04]} exd5 {[%emt 0:01:29]} 9. cxd5 {[%emt 0:00:05]} a6 {[%emt 0:03:21]} 10. a4 {[%emt 0:00:05]} Re8 {[%emt 0:00:18][%cal Bf8e8,Be8e4,Be4b4][%mdl 32]} 11. Re1 {[%emt 0:00:50]} Ne4 {[%emt 0:05:52]} 12. Nxe4 {[%emt 0:02:37]} Rxe4 {[%emt 0:00:02]} 13. Qc2 {[%emt 0:00:05]} Rb4 {[%emt 0:15:12]} 14. Ra2 {[%emt 0:09:19]} b5 {[%emt 0:00:04]} 15. axb5 {[%emt 0:02:11]} Rxb5 {[%emt 0:00:24]} 16. e4 {[%emt 0:11:51]} Nd7 {[%emt 0:01:37]} 17. Bf4 {[%emt 0:01:08]} Qe7 {[%emt 0:20:18]} 18. Bf1 {[%emt 0:27:47][%cal Bg2f1,Bf1c4,Bc4e2][%mdl 32]} Rb6 {[%emt 0:05:24]} 19. Bg5 {[%emt 0:01:12]} Bf6 {[%emt 0:05:08]} 20. Bd2 {[%emt 0:02:57]} Rab8 {[%emt 0:12:47][%cal Rb6b2]} 21. Bc3 {[%emt 0:02:38]} Bxc3 {[%emt 0:01:49]} 22. bxc3 {[%emt 0:00:08]} Nf6 {[%emt 0:00:47]} 23. Bc4 {[%emt 0:13:47]} Ng4 {[%emt 0:02:34]} 24. Nd2 {[%emt 0:04:45]} Qb7 $2 {[%emt 0:09:04]} (24... g5 $1 $11 {and Black is okay.}) 25. Be2 $18 {[%emt 0:02:10]} Nf6 {[%emt 0:03:02]} (25... Rb2 26. Rxb2 Qxb2 27. Qxb2 Rxb2 28. Nc4) 26. Nc4 {[%emt 0:03:48]} (26. Raa1 $18) 26... Rb1 $16 {[%emt 0:00:34]} 27. Rxb1 {[%emt 0:01:10]} (27. Nxd6 $2 Rxe1+ 28. Kg2 Bh3+ 29. Kxh3 Qd7+ 30. Kg2 Qxd6 $19) 27... Qxb1+ {[%emt 0:00:02]} 28. Qxb1 {[%emt 0:00:03]} Rxb1+ {[%emt 0:00:04]} 29. Kg2 {[%emt 0:00:06]} Ne8 {[%emt 0:03:38]} (29... Nxe4 $2 30. Bd3 Nxc3 31. Bxb1 $18) 30. Nd2 $36 {[%emt 0:02:49][%csl LRa6,LRb1][%mdl 2048] Prevents Rb3. White is really pushing.} Rc1 {[%emt 0:01:54]} 31. Bxa6 {[%emt 0:01:25]} Bxa6 {[%emt 0:09:23]} 32. Rxa6 {[%emt 0:00:10] aiming for Ra8.} Rxc3 {[%emt 0:00:00][%mdl 4096] Endgame [#] KRN-KRN} (32... Kg7 $16) 33. Ra8 $1 $18 {[%emt 0:00:13]} Kf8 {[%emt 0:00:00] [#]} 34. e5 $1 {[%emt 0:00:11]} Rd3 $2 {[%emt 0:00:00]} (34... dxe5 35. d6 Rd3) 35. Ne4 {[%emt 0:00:39]} (35. exd6 $142 {White threatens d7 and mate.} Rxd5 (35... Rxd2 $2 36. d7 $18) 36. Ne4) 35... dxe5 {[%emt 0:00:00]} 36. d6 {[%emt 0:03:15][%cal Oa8d8]} (36. Nxc5 Rxd5 37. Ne4 Rd7 $11) 36... f5 {[%emt 0:00:00]} 37. Nf6 {[%emt 0:01:16]} ({Inferior is} 37. Nxc5 Rxd6 38. h3 h5 $11) 37... Rxd6 {[%emt 0:00:00]} 38. Nxe8 {[%emt 0:00:04] KRN-KR} Rd4 {[%emt 0:00:00]} 39. Nc7+ {[%emt 0:00:14]} Kf7 {[%emt 0:00:35]} 40. Nb5 {[%emt 0:00:33]} Rb4 {[%emt 0:00:50]} 41. Nc3 {[%emt 0:00:38]} Rb3 {[%emt 0:00:04]} 42. Nd5 {[%emt 0:02:34]} Ke6 {[%emt 0:00:25]} 43. Rd8 {[%emt 0:00:08]} c4 {[%emt 0:01:25]} 44. Ne3 {[%emt 0:04:59]} Rd3 $2 {[%emt 0:01:04]} (44... c3 45. Rc8 Kd7) 45. Re8+ {[%emt 0:00:00]} Kf6 {[%emt 0:01:18]} 46. Nxc4 {[%emt 0:00:00]} e4 {[%emt 0:00:02]} 47. h4 {[%emt 0:00:00]} f4 $2 {[%emt 0:01:29]} (47... Rd7 {was necessary.} 48. Ra8 Kg7) 48. Rf8+ {[%emt 0:00:00]} 1-0

[Event "98th Caplin Hastings Masters 2024-25"]
[Site "Hastings"]
[Date "2025.01.02"]
[Round "8.43"]
[White "Rastogi, Nayan Keats"]
[Black "Zhang, Kendrick Botong"]
[Result "1/2-1/2"]
[ECO "B22"]
[WhiteElo "1892"]
[BlackElo "1979"]
[Annotator "NA RC"]
[PlyCount "53"]
[EventDate "2024.12.23"]
[EventType "swiss"]
[EventCountry "ENG"]
[SourceTitle "playchess.com"]
[Source "ChessBase"]
[SourceQuality "1"]
[TimeControl "5400+30"]

1. e4 {[%emt 0:00:02]} c5 {[%emt 0:00:05]} 2. c3 {[%emt 0:00:04]} Nf6 {[%emt 0:00:17]} 3. e5 {[%emt 0:00:04]} Nd5 {[%emt 0:00:08]} 4. d4 {[%emt 0:00:04]} cxd4 {[%emt 0:00:06]} 5. Nf3 {[%emt 0:00:06]} e6 {[%emt 0:00:14]} 6. cxd4 {[%emt 0:00:06]} b6 {[%emt 0:00:14]} 7. Bc4 {[%emt 0:02:24]} Ba6 {[%emt 0:00:22]} 8. Bxa6 {[%emt 0:03:24]} Bb4+ {[%emt 0:11:25]} 9. Bd2 {[%emt 0:01:46]} Nxa6 {[%emt 0:00:34]} 10. O-O {[%emt 0:01:05]} O-O {[%emt 0:01:28]} 11. Qa4 {[%emt 0:02:49]} Bxd2 {[%emt 0:02:14]} 12. Nbxd2 {[%emt 0:00:27]} Nac7 {[%emt 0:07:27]} 13. Ne4 {[%emt 0:27:47]} f5 {[%emt 0:12:00]} 14. Nd6 {[%emt 0:01:36]} Ne8 {[%emt 0:02:32]} 15. Rac1 {[%emt 0:09:09]} a6 {[%emt 0:15:38]} 16. Nxe8 {[%emt 0:14:43]} Rxe8 {[%emt 0:06:05]} 17. Qa3 {[%emt 0:02:23]} Qb8 {[%emt 0:02:36]} 18. Qd6 {[%emt 0:02:17]} Qb7 {[%emt 0:01:53]} 19. Rc2 {[%emt 0:05:15]} Rac8 {[%emt 0:01:23]} 20. Rfc1 {[%emt 0:04:22]} Rxc2 {[%emt 0:09:55]} 21. Rxc2 {[%emt 0:00:06]} Rc8 {[%emt 0:00:31]} 22. Rxc8+ {[%emt 0:00:50]} Qxc8 {[%emt 0:00:18]} 23. g3 {[%emt 0:02:16]} Kf7 {[%emt 0:03:52]} 24. h4 {[%emt 0:06:31]} h6 {[%emt 0:00:43]} 25. h5 {[%emt 0:01:37]} Qc7 {[%emt 0:08:23]} 26. Qxc7 {[%emt 0:00:54]} Nxc7 {[%emt 0:00:06]} 27. Kf1 {[%emt 0:02:54]} 1/2-1/2

[Event "98th Caplin Hastings Masters 2024-25"]
[Site "Hastings"]
[Date "2025.01.02"]
[Round "8.44"]
[White "Raffin-Sumyk, Piermael"]
[Black "Hu, Junyan"]
[Result "0-1"]
[ECO "B22"]
[WhiteElo "1512"]
[BlackElo "1933"]
[Annotator "NA RC"]
[PlyCount "118"]
[EventDate "2024.12.23"]
[EventType "swiss"]
[EventCountry "ENG"]
[SourceTitle "playchess.com"]
[Source "ChessBase"]
[SourceQuality "1"]
[TimeControl "5400+30"]

1. e4 {[%emt 0:00:02]} c5 {[%emt 0:01:19]} 2. Nf3 {[%emt 0:00:06]} e6 {[%emt 0:00:34]} 3. c3 {[%emt 0:00:06]} d5 {[%emt 0:00:14]} 4. exd5 {[%emt 0:00:08]} Qxd5 {[%emt 0:00:03]} 5. d4 {[%emt 0:00:10]} Nf6 {[%emt 0:00:45]} 6. Na3 {[%emt 0:00:31]} Nc6 {[%emt 0:03:28]} 7. Be3 {[%emt 0:00:08]} cxd4 {[%emt 0:01:07]} 8. Nb5 {[%emt 0:00:19]} Qd7 {[%emt 0:00:45]} 9. Nbxd4 {[%emt 0:00:08]} Be7 {[%emt 0:01:46]} 10. Nxc6 {[%emt 0:00:10]} Qxc6 {[%emt 0:00:10]} 11. Ne5 {[%emt 0:00:11]} Qe4 {[%emt 0:00:13]} 12. Bb5+ {[%emt 0:00:19]} Kf8 {[%emt 0:00:07]} 13. Nf3 {[%emt 0:00:08]} Nd5 {[%emt 0:01:37]} 14. Qd4 {[%emt 0:00:39]} Qxd4 {[%emt 0:01:13]} 15. Bxd4 {[%emt 0:00:07]} a6 {[%emt 0:00:06]} 16. Bc4 {[%emt 0:01:17]} Nf4 {[%emt 0:05:20]} 17. O-O-O {[%emt 0:00:48]} b5 {[%emt 0:00:28]} 18. Bd3 {[%emt 0:04:28]} Bb7 {[%emt 0:01:50]} 19. Rhg1 {[%emt 0:01:32]} Rd8 {[%emt 0:00:35]} 20. Bc2 {[%emt 0:02:28]} Ne2+ {[%emt 0:00:44]} 21. Kb1 {[%emt 0:00:16]} Nxg1 {[%emt 0:00:11]} 22. Rxg1 {[%emt 0:00:09]} f6 {[%emt 0:00:19]} 23. Bb3 {[%emt 0:01:39]} Bd5 {[%emt 0:00:40]} 24. Bc2 {[%emt 0:00:15]} e5 {[%emt 0:01:03]} 25. Bb6 {[%emt 0:00:56]} Rd6 {[%emt 0:03:04]} 26. Ba5 {[%emt 0:00:51]} Kf7 {[%emt 0:03:50]} 27. Nh4 {[%emt 0:05:59]} g6 {[%emt 0:01:36]} 28. Rd1 {[%emt 0:02:00]} Be6 {[%emt 0:01:03]} 29. Rf1 {[%emt 0:01:50]} f5 {[%emt 0:01:16]} 30. Nf3 {[%emt 0:00:44]} Bf6 {[%emt 0:00:18]} 31. Bc7 {[%emt 0:02:02]} Bc4 {[%emt 0:05:07]} 32. Re1 {[%emt 0:01:51]} Re6 {[%emt 0:04:06]} 33. Nd2 {[%emt 0:10:32]} Bd5 {[%emt 0:02:03]} 34. Rd1 {[%emt 0:04:52]} Rc6 {[%emt 0:01:02]} 35. Ba5 {[%emt 0:00:55]} Bd8 {[%emt 0:01:22]} 36. Nf3 {[%emt 0:08:03]} Bxf3 {[%emt 0:01:55]} 37. Bb3+ {[%emt 0:01:53]} Ke7 {[%emt 0:02:34]} 38. Bb4+ {[%emt 0:00:49]} Kf6 {[%emt 0:01:07]} 39. gxf3 {[%emt 0:00:26]} Be7 {[%emt 0:00:39]} 40. Ba5 {[%emt 0:02:06]} Rd6 {[%emt 0:00:36]} 41. Bd5 {[%emt 0:05:27]} Bd8 {[%emt 0:01:21]} 42. Bb4 {[%emt 0:00:09]} Rd7 {[%emt 0:00:06]} 43. c4 {[%emt 0:01:21]} bxc4 {[%emt 0:01:38]} 44. f4 {[%emt 0:00:12]} Bc7 {[%emt 0:00:57]} 45. Kc2 {[%emt 0:05:05]} Rhd8 {[%emt 0:02:27]} 46. Bf3 {[%emt 0:01:00]} Rxd1 {[%emt 0:00:40]} 47. Bxd1 {[%emt 0:00:08]} exf4 {[%emt 0:00:15]} 48. f3 {[%emt 0:00:14]} Be5 {[%emt 0:00:21]} 49. Be2 {[%emt 0:00:39]} Rb8 {[%emt 0:00:35]} 50. Bc3 {[%emt 0:01:10]} Bxc3 {[%emt 0:00:38]} 51. Kxc3 {[%emt 0:00:05]} h5 {[%emt 0:01:08]} 52. h4 {[%emt 0:00:40]} g5 {[%emt 0:00:40]} 53. Bxc4 {[%emt 0:00:20]} Rc8 {[%emt 0:00:21]} 54. Kd3 {[%emt 0:00:35]} Rxc4 {[%emt 0:00:21]} 55. Kxc4 {[%emt 0:00:06]} gxh4 {[%emt 0:00:05]} 56. a4 {[%emt 0:00:05]} h3 {[%emt 0:00:04]} 57. b4 {[%emt 0:00:13]} h2 {[%emt 0:00:06]} 58. b5 {[%emt 0:00:03]} axb5+ {[%emt 0:00:04]} 59. axb5 {[%emt 0:00:05]} h1=Q {[%emt 0:00:04]} 0-1

[Event "98th Caplin Hastings Masters 2024-25"]
[Site "Hastings"]
[Date "2025.01.02"]
[Round "8.45"]
[White "Ruane, Brendan J"]
[Black "Wilson, Matthew R"]
[Result "1-0"]
[ECO "A00"]
[WhiteElo "1869"]
[BlackElo "1766"]
[Annotator "NA RC"]
[PlyCount "95"]
[EventDate "2024.12.23"]
[EventType "swiss"]
[EventCountry "ENG"]
[SourceTitle "playchess.com"]
[Source "ChessBase"]
[SourceQuality "1"]
[TimeControl "5400+30"]

1. Nc3 {[%emt 0:00:04]} d5 {[%emt 0:00:10]} 2. e4 {[%emt 0:00:07]} d4 {[%emt 0:00:05]} 3. Nce2 {[%emt 0:00:05]} e5 {[%emt 0:00:07]} 4. Ng3 {[%emt 0:00:08]} Be6 {[%emt 0:00:15]} 5. Nf3 {[%emt 0:00:15]} f6 {[%emt 0:03:06]} 6. Be2 {[%emt 0:00:12]} Nc6 {[%emt 0:02:45]} 7. Nh4 {[%emt 0:01:09]} Qd7 {[%emt 0:06:21]} 8. h3 {[%emt 0:00:22]} O-O-O {[%emt 0:04:01]} 9. Bg4 {[%emt 0:00:31]} d3 {[%emt 0:01:38]} 10. Bxe6 {[%emt 0:04:17]} Qxe6 {[%emt 0:00:19]} 11. cxd3 {[%emt 0:00:50]} Bc5 {[%emt 0:10:21]} 12. O-O {[%emt 0:02:34]} Nb4 {[%emt 0:03:20]} 13. a3 {[%emt 0:04:44]} Nxd3 {[%emt 0:00:29]} 14. b4 {[%emt 0:00:33]} Bd4 {[%emt 0:05:00]} 15. Rb1 {[%emt 0:00:09]} g6 {[%emt 0:06:34]} 16. Nf3 {[%emt 0:01:27]} Bb6 {[%emt 0:01:33]} 17. Bb2 {[%emt 1:21:33]} h5 {[%emt 0:02:33]} 18. Nh4 {[%emt 0:00:00]} Ne7 {[%emt 0:01:17]} 19. Bc3 {[%emt 0:00:00]} Nf4 {[%emt 0:03:51]} 20. Kh2 {[%emt 0:00:00]} g5 {[%emt 0:05:22]} 21. Nhf5 {[%emt 0:00:00]} Nxf5 {[%emt 0:08:40]} 22. Nxf5 {[%emt 0:00:00]} Qc4 {[%emt 0:03:20]} 23. Qc2 {[%emt 0:00:00]} Nd3 {[%emt 0:06:54]} 24. f3 {[%emt 0:00:00]} Nf4 {[%emt 0:02:55]} 25. Rbe1 {[%emt 0:00:00]} c6 {[%emt 0:06:32]} 26. a4 {[%emt 0:00:00]} Nd3 {[%emt 0:06:59]} 27. Rb1 {[%emt 0:00:00]} g4 {[%emt 0:01:44]} 28. Qb3 {[%emt 0:00:00]} Qxb3 {[%emt 0:01:48]} 29. Rxb3 {[%emt 0:00:00]} gxh3 {[%emt 0:00:46]} 30. Kxh3 {[%emt 0:00:00]} Nf4+ {[%emt 0:00:30]} 31. Kh2 {[%emt 0:00:00]} Kb8 {[%emt 0:00:25]} 32. a5 {[%emt 0:00:00]} Bc7 {[%emt 0:00:31]} 33. b5 {[%emt 0:00:00]} cxb5 {[%emt 0:00:21]} 34. Rxb5 {[%emt 0:00:00]} Rdg8 {[%emt 0:01:20]} 35. g3 {[%emt 0:00:00]} Ne6 {[%emt 0:02:24]} 36. Rfb1 {[%emt 0:00:00]} b6 {[%emt 0:00:16]} 37. axb6 {[%emt 0:00:00]} Bxb6 {[%emt 0:00:53]} 38. d4 {[%emt 0:00:00]} Rc8 {[%emt 0:01:23]} 39. R5b3 {[%emt 0:00:00]} Nxd4 {[%emt 0:01:07]} 40. Nxd4 {[%emt 0:00:00]} exd4 {[%emt 0:00:02]} 41. Bxd4 {[%emt 0:00:00]} Rc6 {[%emt 0:02:09]} 42. Bxb6 {[%emt 0:00:00]} axb6 {[%emt 0:00:04]} 43. Rxb6+ {[%emt 0:00:00]} Kc7 {[%emt 0:00:04]} 44. Rb7+ {[%emt 0:00:00]} Kd6 {[%emt 0:00:12]} 45. Rd1+ {[%emt 0:00:00]} Ke6 {[%emt 0:00:12]} 46. Rdd7 {[%emt 0:00:00]} Rc2+ {[%emt 0:00:42]} 47. Kh3 {[%emt 0:00:00]} Rc1 {[%emt 0:00:23]} 48. Re7+ {[%emt 0:00:00]} 1-0